[Event "*** Qualifier 2: Titled Tuesday 3|2 Blitz"]
[Site "Chess.com"]
[Date "2017.04.11"]
[Round "1"]
[White "wonderfultime"]
[Black "afgano29"]
[Result "1/2-1/2"]
[WhiteElo "2683"]
[BlackElo "2380"]
[TimeControl "180+2"]
[EndTime "13:13:12 PDT"]
[Termination "Game drawn by repetition"]

1. d4 {[%clk 0:03:01.8]} 1... Nf6 {[%clk 0:03:00.4]} 2. c4 {[%clk 0:03:02.2]}
2... g6 {[%clk 0:03:01.2]} 3. Nc3 {[%clk 0:03:03.3]} 3... d5 {[%clk 0:03:02.1]}
4. cxd5 {[%clk 0:03:03.5]} 4... Nxd5 {[%clk 0:03:03.1]} 5. e4 {[%clk 0:03:05.2]}
5... Nxc3 {[%clk 0:03:04.3]} 6. bxc3 {[%clk 0:03:07.1]} 6... c5 {[%clk
0:03:05.7]} 7. Bb5+ {[%clk 0:03:06.2]} 7... Nc6 {[%clk 0:03:02]} 8. d5 {[%clk
0:02:51.1]} 8... a6 {[%clk 0:03:01.9]} 9. Be2 {[%clk 0:02:51.6]} 9... Ne5 {[%clk
0:02:49.9]} 10. Be3 {[%clk 0:02:49.6]} 10... Qc7 {[%clk 0:02:46.9]} 11. f4
{[%clk 0:02:46]} 11... Nd7 {[%clk 0:02:46.9]} 12. Nf3 {[%clk 0:02:46]} 12... Bg7
{[%clk 0:02:47.2]} 13. e5 {[%clk 0:02:47]} 13... O-O {[%clk 0:02:45]} 14. O-O
{[%clk 0:02:47.6]} 14... b5 {[%clk 0:02:41.7]} 15. a4 {[%clk 0:02:48.2]} 15...
Rb8 {[%clk 0:02:40.6]} 16. Ng5 {[%clk 0:02:20.7]} 16... Bb7 {[%clk 0:02:21.4]}
17. axb5 {[%clk 0:01:54.7]} 17... axb5 {[%clk 0:02:18.1]} 18. Bxb5 {[%clk
0:01:46.1]} 18... Bxd5 {[%clk 0:01:54.8]} 19. Qxd5 {[%clk 0:01:44.6]} 19... Rxb5
{[%clk 0:01:55.2]} 20. e6 {[%clk 0:01:38.2]} 20... Nf6 {[%clk 0:01:48.8]} 21.
exf7+ {[%clk 0:01:38.8]} 21... Kh8 {[%clk 0:01:49.5]} 22. Qc4 {[%clk 0:01:39.8]}
22... Qc6 {[%clk 0:01:42.8]} 23. Ne6 {[%clk 0:01:38.7]} 23... Nd5 {[%clk
0:01:34.8]} 24. Nxf8 {[%clk 0:01:02.5]} 24... Nxe3 {[%clk 0:01:32.7]} 25. Qe2
{[%clk 0:01:03.6]} 25... Nxf1 {[%clk 0:00:54.6]} 26. Qxe7 {[%clk 0:01:02.2]}
26... Rb8 {[%clk 0:00:47.3]} 27. Nd7 {[%clk 0:01:00.1]} 27... Ne3 {[%clk
0:00:22.7]} 28. Kf2 {[%clk 0:00:32.3]} 28... Ng4+ {[%clk 0:00:18.8]} 29. Kg3
{[%clk 0:00:31.1]} 29... Ne3 {[%clk 0:00:14]} 30. Kf2 {[%clk 0:00:31.4]} 30...
Qxg2+ {[%clk 0:00:13.5]} 31. Kxe3 {[%clk 0:00:32.6]} 31... Qh3+ {[%clk
0:00:14.8]} 32. Ke4 {[%clk 0:00:25.8]} 32... Qf5+ {[%clk 0:00:15.8]} 33. Ke3
{[%clk 0:00:23.8]} 33... Qh3+ {[%clk 0:00:17.3]} 34. Ke4 {[%clk 0:00:25.3]}
34... Qg2+ {[%clk 0:00:18.5]} 35. Kd3 {[%clk 0:00:19.9]} 35... Qf3+ {[%clk
0:00:19.6]} 36. Kc4 {[%clk 0:00:20.9]} 36... Qxc3+ {[%clk 0:00:20.2]} 37. Kd5
{[%clk 0:00:22.1]} 37... Qd4+ {[%clk 0:00:21.2]} 38. Kc6 {[%clk 0:00:23.3]}
38... Rc8+ {[%clk 0:00:20]} 39. Kb7 {[%clk 0:00:24.3]} 39... Qxa1 {[%clk
0:00:15.9]} 40. Qe8+ {[%clk 0:00:20.6]} 40... Bf8 {[%clk 0:00:17.1]} 41. Kxc8
{[%clk 0:00:19.1]} 41... Qa8+ {[%clk 0:00:17.9]} 42. Nb8 {[%clk 0:00:20.4]}
42... Kg7 {[%clk 0:00:17]} 43. h4 {[%clk 0:00:13.4]} 43... c4 {[%clk 0:00:17.6]}
44. f5 {[%clk 0:00:14.5]} 44... gxf5 {[%clk 0:00:18.3]} 45. h5 {[%clk
0:00:15.7]} 45... h6 {[%clk 0:00:18.2]} 46. Qe5+ {[%clk 0:00:17]} 46... Kxf7
{[%clk 0:00:18.9]} 47. Qxf5+ {[%clk 0:00:18.5]} 47... Ke7 {[%clk 0:00:18.5]} 48.
Qc5+ {[%clk 0:00:17.6]} 48... Kf7 {[%clk 0:00:19.6]} 49. Qxc4+ {[%clk
0:00:18.9]} 49... Kg7 {[%clk 0:00:20.5]} 50. Qd4+ {[%clk 0:00:19.3]} 50... Kg8
{[%clk 0:00:21.2]} 51. Qg4+ {[%clk 0:00:20]} 51... Bg7 {[%clk 0:00:21.3]} 52.
Qe6+ {[%clk 0:00:20.4]} 52... Kh8 {[%clk 0:00:21.8]} 53. Qe8+ {[%clk 0:00:21.1]}
53... Kh7 {[%clk 0:00:23.1]} 54. Kc7 {[%clk 0:00:17.8]} 54... Qa5+ {[%clk
0:00:23]} 55. Kb7 {[%clk 0:00:18.4]} 55... Qb4+ {[%clk 0:00:23.6]} 56. Kc8
{[%clk 0:00:19.9]} 56... Qg4+ {[%clk 0:00:22.9]} 57. Nd7 {[%clk 0:00:19.7]}
57... Qc4+ {[%clk 0:00:22.4]} 58. Kb7 {[%clk 0:00:20.6]} 58... Qb5+ {[%clk
0:00:23]} 59. Kc7 {[%clk 0:00:21.4]} 59... Qc4+ {[%clk 0:00:23.1]} 60. Kd6
{[%clk 0:00:22.9]} 60... Qd4+ {[%clk 0:00:23.5]} 61. Kc6 {[%clk 0:00:23.2]}
61... Qc4+ {[%clk 0:00:24.3]} 62. Nc5 {[%clk 0:00:24]} 62... Qh4 {[%clk
0:00:19.3]} 63. Ne4 {[%clk 0:00:20.5]} 63... Qh1 {[%clk 0:00:17.5]} 64. Kd5
{[%clk 0:00:19.7]} 64... Qd1+ {[%clk 0:00:17.8]} 65. Ke6 {[%clk 0:00:14.1]}
65... Qb3+ {[%clk 0:00:18.6]} 66. Ke7 {[%clk 0:00:12.5]} 66... Qb4+ {[%clk
0:00:18.8]} 67. Nd6 {[%clk 0:00:12.4]} 67... Qh4+ {[%clk 0:00:17.7]} 68. Kd7
{[%clk 0:00:10.3]} 68... Qa4+ {[%clk 0:00:18.2]} 69. Ke7 {[%clk 0:00:10.8]}
69... Qh4+ {[%clk 0:00:17.9]} 70. Ke6 {[%clk 0:00:11.1]} 70... Qg4+ {[%clk
0:00:18.1]} 71. Kd5 {[%clk 0:00:12.6]} 71... Qd1+ {[%clk 0:00:18.5]} 72. Kc6
{[%clk 0:00:13.8]} 72... Qa4+ {[%clk 0:00:19.2]} 73. Nb5 {[%clk 0:00:15.2]}
73... Qa6+ {[%clk 0:00:18.8]} 74. Kc5 {[%clk 0:00:13.6]} 74... Qf6 {[%clk
0:00:18.6]} 75. Qe4+ {[%clk 0:00:13.3]} 75... Kh8 {[%clk 0:00:19.2]} 76. Qe8+
{[%clk 0:00:10.3]} 76... Bf8+ {[%clk 0:00:19.9]} 77. Kd5 {[%clk 0:00:10.7]}
77... Qf5+ {[%clk 0:00:20.4]} 78. Kc6 {[%clk 0:00:12.1]} 78... Qf3+ {[%clk
0:00:20.7]} 79. Kb6 {[%clk 0:00:12.6]} 79... Qf6+ {[%clk 0:00:21.6]} 80. Kb7
{[%clk 0:00:12.9]} 80... Qf3+ {[%clk 0:00:19]} 81. Kb8 {[%clk 0:00:09.4]} 81...
Qf4+ {[%clk 0:00:19.4]} 82. Nc7 {[%clk 0:00:10.7]} 82... Kh7 {[%clk 0:00:17.8]}
83. Qg6+ {[%clk 0:00:09.3]} 83... Kh8 {[%clk 0:00:18.4]} 84. Kc8 {[%clk
0:00:11.2]} 84... Qe5 {[%clk 0:00:08.4]} 85. Ne6 {[%clk 0:00:11.8]} 85... Qc3+
{[%clk 0:00:08.5]} 86. Kd8 {[%clk 0:00:12.9]} 86... Bg7 {[%clk 0:00:08.2]} 87.
Ke7 {[%clk 0:00:12.6]} 87... Qa3+ {[%clk 0:00:06.8]} 88. Ke8 {[%clk 0:00:12.9]}
88... Qc3 {[%clk 0:00:07.2]} 89. Nd8 {[%clk 0:00:13]} 89... Qe5+ {[%clk
0:00:07.7]} 90. Ne6 {[%clk 0:00:12.7]} 90... Qb8+ {[%clk 0:00:08.3]} 91. Kd7
{[%clk 0:00:14.1]} 91... Qb7+ {[%clk 0:00:09.2]} 92. Nc7 {[%clk 0:00:15.3]}
92... Qb2 {[%clk 0:00:08.7]} 93. Nd5 {[%clk 0:00:15.9]} 93... Qb5+ {[%clk
0:00:09.4]} 94. Ke6 {[%clk 0:00:15.1]} 94... Qa6+ {[%clk 0:00:10.1]} 95. Kf7
{[%clk 0:00:15.3]} 95... Qb7+ {[%clk 0:00:10.5]} 96. Ne7 {[%clk 0:00:16.3]}
96... Qb3+ {[%clk 0:00:11.6]} 97. Qe6 {[%clk 0:00:17.2]} 97... Qf3+ {[%clk
0:00:12.3]} 98. Nf5 {[%clk 0:00:18.1]} 98... Qxh5+ {[%clk 0:00:13.1]} 99. Ke7
{[%clk 0:00:17.7]} 99... Qg5+ {[%clk 0:00:13.9]} 100. Kf7 {[%clk 0:00:18.3]}
100... Qh5+ {[%clk 0:00:14.3]} 101. Ke7 {[%clk 0:00:19.4]} 101... Qg5+ {[%clk
0:00:15.2]} 102. Kf7 {[%clk 0:00:20.4]} 102... Qh5+ {[%clk 0:00:15.1]} 1/2-1/2

[Event "*** Qualifier 2: Titled Tuesday 3|2 Blitz"]
[Site "Chess.com"]
[Date "2017.04.11"]
[Round "2"]
[White "jlandaw"]
[Black "evgenysharapov"]
[Result "1-0"]
[WhiteElo "2401"]
[BlackElo "2278"]
[TimeControl "180+2"]
[EndTime "13:15:40 PDT"]
[Termination "jlandaw won by checkmate"]

1. e4 {[%clk 0:03:02]} 1... c5 {[%clk 0:03:00.3]} 2. Nc3 {[%clk 0:03:01.6]} 2...
Nc6 {[%clk 0:03:00.6]} 3. g3 {[%clk 0:03:02.6]} 3... g6 {[%clk 0:03:00.7]} 4.
Bg2 {[%clk 0:03:04.1]} 4... Bg7 {[%clk 0:03:01.4]} 5. d3 {[%clk 0:03:05.4]} 5...
e5 {[%clk 0:03:02]} 6. Nh3 {[%clk 0:03:05.2]} 6... Nge7 {[%clk 0:03:02.3]} 7. f4
{[%clk 0:03:06.3]} 7... d6 {[%clk 0:03:02.7]} 8. O-O {[%clk 0:03:07.8]} 8... O-O
{[%clk 0:03:00.7]} 9. f5 {[%clk 0:03:08.2]} 9... gxf5 {[%clk 0:03:01]} 10. exf5
{[%clk 0:03:08]} 10... Nxf5 {[%clk 0:02:50.3]} 11. Be4 {[%clk 0:03:06.6]} 11...
Nfd4 {[%clk 0:02:34.2]} 12. Bxh7+ {[%clk 0:02:46.5]} 12... Kxh7 {[%clk
0:02:34.3]} 13. Qh5+ {[%clk 0:02:47.6]} 13... Kg8 {[%clk 0:02:32.9]} 14. Ng5
{[%clk 0:02:48.9]} 14... Re8 {[%clk 0:02:19.5]} 15. Qh7+ {[%clk 0:02:48]} 15...
Kf8 {[%clk 0:02:19.8]} 16. Rxf7# {[%clk 0:02:49.9]} 1-0

[Event "*** Qualifier 2: Titled Tuesday 3|2 Blitz"]
[Site "Chess.com"]
[Date "2017.04.11"]
[Round "2"]
[White "Iball95"]
[Black "ulises2013"]
[Result "1-0"]
[WhiteElo "2546"]
[BlackElo "2292"]
[TimeControl "180+2"]
[EndTime "13:15:57 PDT"]
[Termination "Iball95 won by resignation"]

1. e4 {[%clk 0:03:02]} 1... g6 {[%clk 0:02:39.5]} 2. d4 {[%clk 0:03:01.1]} 2...
Bg7 {[%clk 0:02:40.7]} 3. Nc3 {[%clk 0:03:02]} 3... c5 {[%clk 0:02:41.6]} 4. Nf3
{[%clk 0:02:51.2]} 4... Qa5 {[%clk 0:02:40.9]} 5. dxc5 {[%clk 0:02:41.3]} 5...
Bxc3+ {[%clk 0:02:40.9]} 6. bxc3 {[%clk 0:02:43.2]} 6... Qxc3+ {[%clk
0:02:42.4]} 7. Bd2 {[%clk 0:02:44.3]} 7... Qxc5 {[%clk 0:02:43.8]} 8. Bd3 {[%clk
0:02:45.4]} 8... d6 {[%clk 0:02:42.6]} 9. O-O {[%clk 0:02:46.4]} 9... Nf6 {[%clk
0:02:43.6]} 10. Rb1 {[%clk 0:02:46.8]} 10... Qc7 {[%clk 0:02:44.5]} 11. Bh6
{[%clk 0:02:44.8]} 11... Rg8 {[%clk 0:02:44.9]} 12. Re1 {[%clk 0:02:43.8]} 12...
Nc6 {[%clk 0:02:46.2]} 13. Bg5 {[%clk 0:02:37.9]} 13... Bg4 {[%clk 0:02:42.4]}
14. h3 {[%clk 0:02:37.7]} 14... Bxf3 {[%clk 0:02:43.1]} 15. Qxf3 {[%clk
0:02:39.6]} 15... Ne5 {[%clk 0:02:44.6]} 16. Qe3 {[%clk 0:02:37.7]} 16... Nxd3
{[%clk 0:02:43.8]} 17. cxd3 {[%clk 0:02:39.6]} 17... Rc8 {[%clk 0:02:37]} 18.
Qxa7 {[%clk 0:02:37.4]} 1-0

[Event "*** Qualifier 2: Titled Tuesday 3|2 Blitz"]
[Site "Chess.com"]
[Date "2017.04.11"]
[Round "2"]
[White "Wolverine_master"]
[Black "chesstatour"]
[Result "1/2-1/2"]
[WhiteElo "1990"]
[BlackElo "1925"]
[TimeControl "180+2"]
[EndTime "13:16:44 PDT"]
[Termination "Game drawn by repetition"]

1. e4 {[%clk 0:03:02]} 1... c6 {[%clk 0:03:00.6]} 2. d4 {[%clk 0:03:02.5]} 2...
d5 {[%clk 0:03:02.2]} 3. exd5 {[%clk 0:03:03]} 3... cxd5 {[%clk 0:03:03.7]} 4.
c4 {[%clk 0:03:04.6]} 4... Nf6 {[%clk 0:03:03.9]} 5. Nc3 {[%clk 0:03:06.1]} 5...
Nc6 {[%clk 0:03:05]} 6. Bg5 {[%clk 0:03:05.1]} 6... Qa5 {[%clk 0:03:05.5]} 7.
Bxf6 {[%clk 0:03:00.6]} 7... exf6 {[%clk 0:03:07.4]} 8. cxd5 {[%clk 0:02:59.2]}
8... Bb4 {[%clk 0:03:07.2]} 9. dxc6 {[%clk 0:02:22.5]} 9... Bxc3+ {[%clk
0:03:03.5]} 10. bxc3 {[%clk 0:02:18.8]} 10... Qxc3+ {[%clk 0:03:05.4]} 11. Ke2
{[%clk 0:02:16.6]} 11... O-O {[%clk 0:02:38.3]} 12. f3 {[%clk 0:01:59.9]} 12...
Re8+ {[%clk 0:02:38.3]} 13. Kf2 {[%clk 0:02:00.9]} 13... Qe3+ {[%clk 0:02:33.6]}
14. Kg3 {[%clk 0:02:01.8]} 14... Qg5+ {[%clk 0:02:17.9]} 15. Kf2 {[%clk
0:01:56.4]} 15... Qe3+ {[%clk 0:02:15.6]} 16. Kg3 {[%clk 0:01:56.3]} 16... Qg5+
{[%clk 0:02:15.4]} 17. Kf2 {[%clk 0:01:56.8]} 17... Qe3+ {[%clk 0:02:16]} 18.
Kg3 {[%clk 0:01:57.7]} 1/2-1/2

[Event "*** Qualifier 2: Titled Tuesday 3|2 Blitz"]
[Site "Chess.com"]
[Date "2017.04.11"]
[Round "2"]
[White "kjzsdu"]
[Black "ShimanovAlex"]
[Result "0-1"]
[WhiteElo "2435"]
[BlackElo "2620"]
[TimeControl "180+2"]
[EndTime "13:18:35 PDT"]
[Termination "ShimanovAlex won by resignation"]

1. e4 {[%clk 0:03:02]} 1... c6 {[%clk 0:03:00.7]} 2. d4 {[%clk 0:03:02]} 2... d5
{[%clk 0:03:01.6]} 3. exd5 {[%clk 0:03:03.9]} 3... cxd5 {[%clk 0:03:02.6]} 4.
Bd3 {[%clk 0:03:05]} 4... Nc6 {[%clk 0:03:03.3]} 5. Ne2 {[%clk 0:03:05.6]} 5...
Bg4 {[%clk 0:03:02.1]} 6. c3 {[%clk 0:03:05.9]} 6... Qd7 {[%clk 0:03:00]} 7. h3
{[%clk 0:03:06.5]} 7... Bf5 {[%clk 0:03:00.7]} 8. Bxf5 {[%clk 0:03:01.5]} 8...
Qxf5 {[%clk 0:03:00.4]} 9. Qb3 {[%clk 0:03:02.9]} 9... Qd7 {[%clk 0:03:00.9]}
10. Nd2 {[%clk 0:02:57.3]} 10... e6 {[%clk 0:03:00.9]} 11. Nf3 {[%clk
0:02:58.3]} 11... Nf6 {[%clk 0:02:54]} 12. Bf4 {[%clk 0:02:55.2]} 12... Be7
{[%clk 0:02:54.8]} 13. O-O {[%clk 0:02:47.9]} 13... O-O {[%clk 0:02:51.4]} 14.
g4 {[%clk 0:02:47]} 14... Ne4 {[%clk 0:02:50.1]} 15. Ng3 {[%clk 0:02:43.9]}
15... Nd6 {[%clk 0:02:44.5]} 16. Rae1 {[%clk 0:02:36]} 16... Rfe8 {[%clk
0:02:44.5]} 17. Ne5 {[%clk 0:02:36]} 17... Nxe5 {[%clk 0:02:45.3]} 18. Bxe5
{[%clk 0:02:37.9]} 18... Nc4 {[%clk 0:02:44]} 19. Bf4 {[%clk 0:02:35.8]} 19...
b5 {[%clk 0:02:40.9]} 20. Bc1 {[%clk 0:02:29.3]} 20... Rac8 {[%clk 0:02:36.3]}
21. Re2 {[%clk 0:02:28.8]} 21... a5 {[%clk 0:02:36.4]} 22. a3 {[%clk 0:02:22.8]}
22... b4 {[%clk 0:02:35.9]} 23. axb4 {[%clk 0:02:22.3]} 23... axb4 {[%clk
0:02:37]} 24. f4 {[%clk 0:02:15.4]} 24... bxc3 {[%clk 0:02:37]} 25. bxc3 {[%clk
0:02:16.2]} 25... Bh4 {[%clk 0:02:27.3]} 26. Rf3 {[%clk 0:02:09.7]} 26... Bxg3
{[%clk 0:02:27]} 27. Rxg3 {[%clk 0:02:10.6]} 27... Nd6 {[%clk 0:02:28.6]} 28.
Bd2 {[%clk 0:02:03.3]} 28... Ne4 {[%clk 0:02:26.5]} 29. Rge3 {[%clk 0:02:04.5]}
29... f5 {[%clk 0:02:25.2]} 30. g5 {[%clk 0:02:02]} 30... Rb8 {[%clk 0:02:24.5]}
31. Qc2 {[%clk 0:02:01.9]} 31... Rec8 {[%clk 0:02:21.7]} 32. Be1 {[%clk
0:02:02.4]} 32... Qb5 {[%clk 0:02:20.5]} 33. Rh2 {[%clk 0:01:56.8]} 33... Qb1
{[%clk 0:02:20]} 34. Qxb1 {[%clk 0:01:51.3]} 34... Rxb1 {[%clk 0:02:21.9]} 35.
Rc2 {[%clk 0:01:52.3]} 35... Kf7 {[%clk 0:02:14.7]} 36. Kf1 {[%clk 0:01:51.9]}
36... Ra8 {[%clk 0:02:10.1]} 37. c4 {[%clk 0:01:43.5]} 37... dxc4 {[%clk
0:02:10.9]} 38. Rxc4 {[%clk 0:01:44]} 38... Nd2+ {[%clk 0:02:11.7]} 0-1

[Event "*** Qualifier 2: Titled Tuesday 3|2 Blitz"]
[Site "Chess.com"]
[Date "2017.04.11"]
[Round "2"]
[White "djogrodek1"]
[Black "pedroholly22"]
[Result "0-1"]
[WhiteElo "2375"]
[BlackElo "2286"]
[TimeControl "180+2"]
[EndTime "13:19:07 PDT"]
[Termination "pedroholly22 won by resignation"]

1. e4 {[%clk 0:03:01.9]} 1... c5 {[%clk 0:03:00]} 2. Nf3 {[%clk 0:03:02.4]} 2...
d6 {[%clk 0:02:59.8]} 3. Bb5+ {[%clk 0:03:03.2]} 3... Nd7 {[%clk 0:02:59.6]} 4.
O-O {[%clk 0:02:51.7]} 4... Nf6 {[%clk 0:03:00.5]} 5. Re1 {[%clk 0:02:52.7]}
5... g6 {[%clk 0:03:00.6]} 6. c3 {[%clk 0:02:53.6]} 6... Bg7 {[%clk 0:03:00.7]}
7. d4 {[%clk 0:02:54.9]} 7... O-O {[%clk 0:03:00.9]} 8. Nbd2 {[%clk 0:02:51.7]}
8... a6 {[%clk 0:02:59.6]} 9. Bf1 {[%clk 0:02:52.5]} 9... b5 {[%clk 0:02:59]}
10. a4 {[%clk 0:02:53.5]} 10... b4 {[%clk 0:02:59.5]} 11. e5 {[%clk 0:02:53.1]}
11... Nd5 {[%clk 0:02:59]} 12. e6 {[%clk 0:02:23.9]} 12... fxe6 {[%clk
0:02:58.5]} 13. Ng5 {[%clk 0:02:21]} 13... Nc7 {[%clk 0:02:47.3]} 14. Nxe6
{[%clk 0:02:06]} 14... Nxe6 {[%clk 0:02:47.9]} 15. Rxe6 {[%clk 0:02:07.9]} 15...
Ne5 {[%clk 0:02:43.1]} 16. Rxe5 {[%clk 0:02:06.3]} 16... dxe5 {[%clk 0:02:43.7]}
17. dxc5 {[%clk 0:02:05]} 17... Kh8 {[%clk 0:02:41.5]} 18. cxb4 {[%clk
0:02:04.1]} 18... Rb8 {[%clk 0:02:41.6]} 19. b5 {[%clk 0:02:04.6]} 19... e4
{[%clk 0:02:40.5]} 20. Qe2 {[%clk 0:02:00.8]} 20... Bd4 {[%clk 0:02:33.9]} 21.
Nxe4 {[%clk 0:01:57.1]} 21... Bf5 {[%clk 0:02:35.2]} 22. Be3 {[%clk 0:01:43.7]}
22... Bxe4 {[%clk 0:02:30.1]} 23. Rd1 {[%clk 0:01:43.6]} 23... Bxe3 {[%clk
0:02:02.2]} 24. Rxd8 {[%clk 0:01:43.2]} 24... Bxf2+ {[%clk 0:02:03.3]} 25. Qxf2
{[%clk 0:01:37.1]} 25... Rbxd8 {[%clk 0:02:04.1]} 26. Qe3 {[%clk 0:01:38.2]}
26... Rd1 {[%clk 0:02:02]} 27. Qe2 {[%clk 0:01:06]} 27... Rfxf1+ {[%clk
0:01:49.9]} 28. Qxf1 {[%clk 0:01:05.6]} 28... Rxf1+ {[%clk 0:01:50.9]} 29. Kxf1
{[%clk 0:01:07.5]} 29... axb5 {[%clk 0:01:52.1]} 30. a5 {[%clk 0:01:08.8]} 30...
Kg8 {[%clk 0:01:47.4]} 0-1

[Event "*** Qualifier 2: Titled Tuesday 3|2 Blitz"]
[Site "Chess.com"]
[Date "2017.04.11"]
[Round "2"]
[White "nickmatta"]
[Black "Alexander_Moskalenko"]
[Result "0-1"]
[WhiteElo "2306"]
[BlackElo "2651"]
[TimeControl "180+2"]
[EndTime "13:19:09 PDT"]
[Termination "Alexander_Moskalenko won by resignation"]

1. d4 {[%clk 0:03:02]} 1... e6 {[%clk 0:02:59.3]} 2. c4 {[%clk 0:03:03.2]} 2...
f5 {[%clk 0:02:59.9]} 3. g3 {[%clk 0:03:04.2]} 3... Nf6 {[%clk 0:03:01.2]} 4.
Bg2 {[%clk 0:03:05.6]} 4... d5 {[%clk 0:03:02.4]} 5. Nf3 {[%clk 0:03:00.2]} 5...
Bd6 {[%clk 0:03:03.9]} 6. b3 {[%clk 0:03:00.2]} 6... c6 {[%clk 0:03:03.2]} 7.
O-O {[%clk 0:02:59.9]} 7... Qe7 {[%clk 0:03:04.8]} 8. a4 {[%clk 0:03:00.5]} 8...
a5 {[%clk 0:03:00.3]} 9. Ba3 {[%clk 0:03:00.9]} 9... Bxa3 {[%clk 0:03:01]} 10.
Nxa3 {[%clk 0:03:02.8]} 10... Ne4 {[%clk 0:03:01.5]} 11. Nb1 {[%clk 0:02:49.2]}
11... O-O {[%clk 0:02:59.9]} 12. Nfd2 {[%clk 0:02:28.9]} 12... b6 {[%clk
0:02:59.4]} 13. Nxe4 {[%clk 0:02:21.1]} 13... fxe4 {[%clk 0:03:00]} 14. f3
{[%clk 0:02:22.8]} 14... exf3 {[%clk 0:03:01.2]} 15. Bxf3 {[%clk 0:02:24.7]}
15... Ba6 {[%clk 0:02:51]} 16. cxd5 {[%clk 0:01:54.3]} 16... exd5 {[%clk
0:02:30]} 17. Nc3 {[%clk 0:01:55.5]} 17... Qe3+ {[%clk 0:02:30.4]} 18. Kg2
{[%clk 0:01:54.6]} 18... Qxc3 {[%clk 0:02:32.3]} 19. Rc1 {[%clk 0:01:56.5]}
19... Qe3 {[%clk 0:02:30.3]} 20. Bg4 {[%clk 0:01:37.7]} 20... Rxf1 {[%clk
0:02:17]} 21. Qxf1 {[%clk 0:01:39.6]} 21... Qe4+ {[%clk 0:02:16.6]} 22. Bf3
{[%clk 0:01:23.3]} 22... Qe6 {[%clk 0:02:07.4]} 23. Qd1 {[%clk 0:01:11]} 23...
Nd7 {[%clk 0:02:06.2]} 24. Qc2 {[%clk 0:01:05.7]} 24... Bb7 {[%clk 0:01:53.3]}
25. e4 {[%clk 0:01:04.9]} 25... dxe4 {[%clk 0:01:49]} 26. Bxe4 {[%clk
0:01:06.8]} 26... Nf6 {[%clk 0:01:49.5]} 27. Re1 {[%clk 0:00:49.8]} 27... Nxe4
{[%clk 0:01:49.2]} 28. Rxe4 {[%clk 0:00:51.7]} 28... c5 {[%clk 0:01:49.4]} 0-1

[Event "*** Qualifier 2: Titled Tuesday 3|2 Blitz"]
[Site "Chess.com"]
[Date "2017.04.11"]
[Round "2"]
[White "saraswathii"]
[Black "tihanaivekovic223"]
[Result "1-0"]
[WhiteElo "2176"]
[BlackElo "2022"]
[TimeControl "180+2"]
[EndTime "13:19:24 PDT"]
[Termination "saraswathii won by resignation"]

1. e4 {[%clk 0:03:02]} 1... c6 {[%clk 0:03:00.8]} 2. d3 {[%clk 0:03:02.2]} 2...
d5 {[%clk 0:03:02.7]} 3. Nd2 {[%clk 0:02:57.3]} 3... e5 {[%clk 0:03:04]} 4. Ngf3
{[%clk 0:02:53.5]} 4... Bd6 {[%clk 0:03:05.2]} 5. g3 {[%clk 0:02:42.2]} 5... Ne7
{[%clk 0:03:06]} 6. Bg2 {[%clk 0:02:35.1]} 6... O-O {[%clk 0:03:05.8]} 7. O-O
{[%clk 0:02:33.5]} 7... f5 {[%clk 0:03:06.9]} 8. exf5 {[%clk 0:02:33.6]} 8...
Bxf5 {[%clk 0:03:04.3]} 9. Re1 {[%clk 0:02:34.3]} 9... Nd7 {[%clk 0:03:04.7]}
10. Nf1 {[%clk 0:02:34.5]} 10... Qc7 {[%clk 0:03:03.1]} 11. Nh4 {[%clk
0:02:34.5]} 11... Kh8 {[%clk 0:02:59.4]} 12. Ne3 {[%clk 0:02:26.1]} 12... Bg6
{[%clk 0:02:57.3]} 13. Nxg6+ {[%clk 0:02:26.5]} 13... Nxg6 {[%clk 0:02:59.2]}
14. Qh5 {[%clk 0:02:24.7]} 14... Nf6 {[%clk 0:02:54.8]} 15. Qh3 {[%clk
0:02:21.2]} 15... Rae8 {[%clk 0:02:53.3]} 16. Nf5 {[%clk 0:02:20.1]} 16... Bc5
{[%clk 0:02:46.7]} 17. Be3 {[%clk 0:02:17.7]} 17... Qb6 {[%clk 0:02:37.8]} 18.
Bxc5 {[%clk 0:02:04.8]} 18... Qxc5 {[%clk 0:02:39.7]} 19. c3 {[%clk 0:02:06.2]}
19... Qb6 {[%clk 0:02:26]} 20. b4 {[%clk 0:02:04.1]} 20... a5 {[%clk 0:02:23.8]}
21. a3 {[%clk 0:02:03.7]} 21... a4 {[%clk 0:02:24.3]} 22. Rad1 {[%clk
0:02:03.1]} 22... Ne7 {[%clk 0:02:14.7]} 23. Nd6 {[%clk 0:02:01.6]} 23... Rd8
{[%clk 0:02:02.6]} 24. Qe6 {[%clk 0:02:01.3]} 24... Rxd6 {[%clk 0:01:37.4]} 25.
Qxd6 {[%clk 0:02:00.3]} 25... Ng4 {[%clk 0:01:09.5]} 26. Qxe7 {[%clk 0:01:53.1]}
26... Rxf2 {[%clk 0:00:59.9]} 27. Qc5 {[%clk 0:01:48.8]} 27... Qd8 {[%clk
0:00:47.1]} 28. Rf1 {[%clk 0:01:48.8]} 28... Rxg2+ {[%clk 0:00:41.3]} 29. Kxg2
{[%clk 0:01:48.9]} 29... d4 {[%clk 0:00:43.2]} 30. Rf8+ {[%clk 0:01:48.5]} 1-0

[Event "*** Qualifier 2: Titled Tuesday 3|2 Blitz"]
[Site "Chess.com"]
[Date "2017.04.11"]
[Round "2"]
[White "Bugcrusher"]
[Black "chessking2151"]
[Result "1-0"]
[WhiteElo "2395"]
[BlackElo "2342"]
[TimeControl "180+2"]
[EndTime "13:19:30 PDT"]
[Termination "Bugcrusher won by resignation"]

1. d4 {[%clk 0:03:01.9]} 1... Nf6 {[%clk 0:03:00.3]} 2. c4 {[%clk 0:02:59.4]}
2... c5 {[%clk 0:03:00.4]} 3. d5 {[%clk 0:02:59.7]} 3... b5 {[%clk 0:02:58.5]}
4. Nd2 {[%clk 0:02:59.7]} 4... bxc4 {[%clk 0:02:24.3]} 5. e4 {[%clk 0:02:57.6]}
5... e6 {[%clk 0:02:22.8]} 6. dxe6 {[%clk 0:02:52.5]} 6... fxe6 {[%clk
0:02:22.5]} 7. e5 {[%clk 0:02:53.7]} 7... Nd5 {[%clk 0:02:23.4]} 8. Nxc4 {[%clk
0:02:54.7]} 8... Nc6 {[%clk 0:02:17]} 9. Bd3 {[%clk 0:02:54.1]} 9... g6 {[%clk
0:02:11.8]} 10. Nf3 {[%clk 0:02:30.1]} 10... Be7 {[%clk 0:01:52]} 11. Bh6 {[%clk
0:02:23.1]} 11... Ba6 {[%clk 0:01:32.1]} 12. O-O {[%clk 0:02:17.7]} 12... Ndb4
{[%clk 0:01:12.6]} 13. Be2 {[%clk 0:02:04.5]} 13... Bxc4 {[%clk 0:00:37.1]} 14.
Bxc4 {[%clk 0:02:06.4]} 14... Na5 {[%clk 0:00:30.1]} 15. Be2 {[%clk 0:02:04.3]}
15... Qc7 {[%clk 0:00:26.7]} 16. a3 {[%clk 0:02:04.1]} 16... Nbc6 {[%clk
0:00:26.4]} 17. Qa4 {[%clk 0:02:00]} 17... Nb7 {[%clk 0:00:20.9]} 18. Rac1
{[%clk 0:01:56.5]} 18... Qa5 {[%clk 0:00:20.6]} 19. Qe4 {[%clk 0:01:51.1]} 19...
O-O-O {[%clk 0:00:18.1]} 20. b4 {[%clk 0:01:51]} 20... Qa4 {[%clk 0:00:18.4]}
21. Rfd1 {[%clk 0:01:48.5]} 21... cxb4 {[%clk 0:00:16]} 22. axb4 {[%clk
0:01:48.8]} 22... Qxb4 {[%clk 0:00:17.3]} 23. Nd4 {[%clk 0:01:47.9]} 23... Kb8
{[%clk 0:00:15.1]} 24. Rxc6 {[%clk 0:01:47.3]} 24... Nc5 {[%clk 0:00:14.1]} 25.
Rxc5 {[%clk 0:01:46.8]} 25... Bxc5 {[%clk 0:00:14.6]} 26. Rb1 {[%clk 0:01:47.7]}
1-0